bitfinex/quotes_ETHUSD_20260121
["timestamp","ask_amount","ask_price","bid_price","bid_amount"]
[1768982518415,0.001,2971.6,2971.2,12.79591396]
[1768982520235,0.001,2971.6,2971.2,13.35091396]
[1768982522619,0.001,2971.6,2971.2,13.90591396]
[1768982523136,0.001,2972.0,2971.3,12.23891396]
[1768982523338,0.001,2972.0,2971.5,12.23891396]
[1768982525119,0.001,2972.0,2971.5,14.07350536]
[1768982525944,12.26952817,2972.5,2971.6,12.23891396]
[1768982527554,12.26952817,2972.5,2971.6,12.79391396]
[1768982528452,0.001,2971.8,2971.6,12.79391396]
[1768982528653,12.26952817,2972.3,2971.7,12.23891396]
[1768982528834,12.26952817,2972.3,2971.9,12.23891396]
[1768982529723,12.26952817,2972.3,2971.8,0.557]
[1768982529924,12.26952817,2972.3,2971.8,13.35091396]
[1768982530456,12.26952817,2972.1,2971.6,0.555]
[1768982530629,12.22160251,2971.6,2971.5,0.555]
[1768982530986,12.22160251,2971.6,2971.2,1.667]
[1768982531131,12.13462938,2971.4,2970.6,0.45390001]
[1768982532563,12.13462938,2971.4,2970.6,1.00890001]
[1768982532738,1.60559846,2971.3,2970.6,1.00890001]
[1768982533062,12.13462938,2971.2,2970.6,1.00890001]
[1768982533626,0.556,2971.5,2970.6,13.24781397]
[1768982533831,12.69062938,2971.5,2970.6,13.24781397]
[1768982535648,12.69062938,2971.5,2970.6,13.80281397]
[1768982536161,12.13462938,2971.4,2970.6,13.80281397]
[1768982536367,3.92131269,2971.5,2970.6,13.80281397]
[1768982536368,12.13462938,2971.2,2970.6,13.80281397]
[1768982536601,12.13462938,2971.2,2970.6,1.56390001]
[1768982537068,12.13462938,2971.0,2970.6,1.51038227]
[1768982537271,12.13462938,2971.0,2970.6,1.48362215]
[1768982537648,12.13462938,2971.0,2970.0,0.0016]
[1768982537961,12.13462938,2970.8,2970.0,12.64007829]
[1768982538149,12.13462938,2970.8,2970.1,1.11]
[1768982538462,12.13462938,2970.8,2970.1,13.74847829]
[1768982540772,1.19901979,2970.9,2970.1,14.30347829]
[1768982540959,12.13462938,2970.9,2970.5,0.002]
[1768982541160,12.13462938,2970.9,2970.1,14.30347829]
[1768982541948,12.13462938,2970.9,2970.1,1.665]
[1768982543145,12.13462938,2970.9,2970.1,2.22]
[1768982543558,12.15941644,2970.8,2970.1,14.85847829]
[1768982543755,12.13462938,2970.8,2970.2,12.63847829]
[1768982543961,12.13462938,2971.3,2970.2,12.63847829]
[1768982544162,0.556,2971.1,2970.2,12.63847829]
[1768982544369,12.69062938,2971.1,2970.2,12.63847829]
[1768982544743,12.13462938,2971.1,2970.2,12.63847829]
[1768982544967,12.13462938,2971.1,2970.4,12.63847829]
[1768982545371,12.69062938,2971.3,2970.6,12.63847829]
[1768982546893,12.13462938,2971.3,2970.6,12.63847829]
[1768982547987,12.13462938,2971.3,2970.6,13.19347829]
[1768982549053,0.556,2971.6,2970.6,13.19347829]
[1768982549246,12.48147758,2971.5,2970.6,13.19347829]
[1768982549452,12.13462938,2971.3,2970.6,13.19347829]
[1768982550374,12.13462938,2971.3,2970.6,13.74847829]
[1768982550747,12.48147758,2971.5,2970.6,13.74847829]
[1768982552397,0.37559389,2972.6,2970.7,12.63847829]
[1768982552555,12.13462938,2972.4,2970.8,12.63847829]
[1768982552752,23.349266,2972.1,2970.7,13.19347829]
[1768982552951,12.71541644,2972.0,2970.8,0.557]
[1768982553180,12.13462938,2971.8,2970.8,0.557]
[1768982553456,12.13562938,2971.3,2970.8,0.557]
[1768982553649,12.13562938,2971.3,2970.7,13.19347829]
[1768982553650,12.13462938,2971.2,2970.7,1.112]
[1768982553898,12.13462938,2971.2,2970.7,0.555]
[1768982554967,0.001,2971.3,2970.7,13.19347829]
[1768982555166,0.001,2971.3,2970.7,14.67952612]
[1768982555486,0.001,2971.3,2970.7,15.23452612]
[1768982557760,0.001,2971.3,2970.9,12.63847829]
[1768982558089,12.13462938,2971.9,2971.1,12.63847829]
[1768982559095,12.69161938,2972.2,2971.1,12.63847829]
[1768982559385,12.13561938,2972.2,2971.3,12.63847829]
[1768982559588,12.13561938,2972.2,2971.5,12.63847829]
[1768982559956,12.13561938,2972.4,2971.5,12.63847829]
[1768982560155,12.13561938,2972.4,2971.5,13.19347829]
[1768982560387,12.13561938,2972.4,2971.5,14.56852612]
[1768982560673,12.13561938,2972.2,2971.5,13.19347829]
[1768982562994,12.13561938,2972.2,2971.5,13.74847829]
[1768982565402,12.13561938,2972.4,2971.5,14.30347829]
[1768982565801,12.69161938,2972.5,2971.5,14.30347829]
[1768982565989,0.001,2972.0,2971.5,14.30347829]
[1768982566190,0.001,2972.0,2971.7,11.96942958]
[1768982566395,0.001,2972.0,2971.9,11.96942958]
[1768982568101,0.001,2972.0,2971.9,12.52442958]
[1768982570679,0.001,2972.0,2971.9,13.07942958]
[1768982573012,0.001,2972.0,2971.9,13.63442958]
[1768982573203,0.001,2972.0,2971.9,1.665]
[1768982573700,12.00894561,2972.9,2972.0,11.96942958]
[1768982573892,12.00894561,2972.7,2972.0,11.92183668]
[1768982574092,12.00894561,2972.5,2972.0,11.92183668]
[1768982574298,12.00894561,2972.3,2971.9,1.49997893]
[1768982574497,12.00894561,2972.3,2971.9,1.27575106]
[1768982574810,1.20089456,2972.2,2971.9,13.24518064]
[1768982575113,12.56494561,2972.7,2971.9,13.24518064]
[1768982575309,12.00894561,2972.8,2971.9,13.24518064]
[1768982575509,12.00894561,2972.8,2971.9,13.80018064]
[1768982576613,12.00894561,2972.9,2971.9,13.80018064]
[1768982578002,0.001,2972.3,2971.9,14.35518064]
[1768982578210,0.001,2972.3,2972.1,11.96942958]
[1768982578919,0.00180024,2973.0,2972.1,11.96942958]
[1768982579093,0.00180024,2973.0,2972.0,0.68850181]
[1768982579094,12.01074585,2973.0,2972.3,11.96942958]
[1768982580431,12.01074585,2973.0,2972.3,12.52442958]
[1768982582228,12.00894561,2972.8,2972.3,0.555]
[1768982582530,12.00894561,2972.6,2972.3,0.49057697]
[1768982582927,12.00894561,2972.6,2972.3,1.04557697]
[1768982583911,13.70211926,2972.7,2972.3,1.04557697]
[1768982584107,1.69317365,2972.7,2972.3,13.01500655]
[1768982584305,0.02478706,2972.8,2972.3,13.01500655]
[1768982585830,0.02478706,2972.8,2972.3,13.57000655]
[1768982586530,16.90694945,2972.9,2972.3,13.57000655]
[1768982586824,0.00180024,2973.0,2972.3,13.57000655]
[1768982587531,0.55780024,2973.0,2972.3,13.57000655]
[1768982588300,0.55780024,2973.0,2972.3,14.12500655]
[1768982588745,12.00894561,2972.9,2972.3,2.15557697]
[1768982589035,16.90694945,2972.6,2972.0,11.96942958]
[1768982589334,12.00894561,2972.8,2972.0,11.96942958]
[1768982589829,0.001,2972.6,2972.0,11.96942958]
[1768982590220,12.00994561,2972.6,2972.0,11.96942958]
[1768982590734,12.00994561,2972.6,2972.0,12.52442958]
[1768982591934,13.21094017,2972.6,2972.0,12.52442958]
[1768982593106,13.21094017,2972.6,2972.0,13.07942958]
[1768982593799,13.21094017,2972.6,2972.0,1.11]
[1768982595136,13.21094017,2972.6,2971.9,1e-08]
[1768982595137,12.00894561,2972.4,2971.9,1e-08]
[1768982595352,12.04854074,2972.2,2971.9,1e-08]
[1768982595643,12.04854074,2972.2,2971.6,0.24075026]
[1768982595644,12.04934074,2971.9,2971.6,0.24075026]
[1768982595831,12.04934074,2971.9,2971.5,1.665]
[1768982596253,0.0008,2971.9,2971.5,13.94198447]
[1768982596419,0.0008,2971.9,2971.5,1.665]
[1768982596420,12.9975436,2971.9,2971.5,1.665]
[1768982596612,12.9975436,2971.9,2971.1,12.27698447]
[1768982597124,12.9975436,2971.9,2971.0,0.0016]
[1768982597125,12.04854074,2971.7,2971.0,12.27858447]
[1768982597328,12.04854074,2971.5,2971.0,12.27858447]
[1768982597843,12.04854074,2971.5,2971.0,0.0016]
[1768982598045,12.04854074,2971.5,2971.0,0.5566]
[1768982598248,13.2495353,2971.5,2971.0,0.5566]
[1768982599854,13.2495353,2971.5,2971.0,12.83358447]
[1768982601341,13.2495353,2971.5,2971.3,0.002]
[1768982601668,13.2495353,2971.5,2971.0,0.5586]
[1768982602966,13.2495353,2971.5,2971.0,12.83558447]
[1768982605632,13.2495353,2971.5,2971.0,0.5586]
[1768982605832,13.30751401,2971.4,2971.0,0.5586]
[1768982606965,13.30751401,2971.4,2971.0,1.1136]
[1768982607466,0.556,2971.4,2971.1,12.27698447]
[1768982607662,0.556,2971.4,2971.0,1.1136]
[1768982607663,3.99499639,2971.1,2971.0,1.1136]
[1768982607963,3.99499639,2971.1,2971.0,1.06301833]
[1768982608178,16.04353713,2971.1,2971.0,0.58841593]
[1768982608338,12.00119859,2971.0,2970.7,1.5659]
[1768982608526,12.55719859,2971.0,2970.7,1.3637]
[1768982608979,12.55719859,2971.0,2970.7,1.1615]
[1768982609134,12.55719859,2971.0,2970.7,1.0604]
[1768982609326,12.55719859,2971.0,2970.7,1.59547946]
[1768982609530,12.00119859,2970.8,2970.7,1.39327946]
[1768982609754,12.00119859,2970.8,2970.7,1.29217946]
[1768982610053,12.00119859,2970.8,2970.7,1.19107946]
[1768982610361,12.00119859,2970.8,2970.7,0.96895891]
[1768982610733,12.00119859,2970.8,2970.7,0.76675891]
[1768982610954,12.00119859,2970.8,2970.7,0.66565891]
[1768982611164,12.00119859,2970.8,2970.7,0.44326714]
[1768982611349,12.00119859,2970.8,2970.6,1.112]
[1768982611542,12.00119859,2970.8,2970.6,1.32411863]
[1768982611865,12.00119859,2970.8,2970.6,0.54857665]
[1768982612167,13.38169215,2970.7,2970.6,0.43322053]
[1768982612366,13.38169215,2970.7,2970.6,0.15755447]
[1768982612565,13.38169215,2970.7,2970.6,0.14348272]
[1768982612858,13.38169215,2970.7,2970.3,0.557]
[1768982613030,12.00119859,2970.7,2970.3,0.557]
[1768982613235,12.00119859,2970.9,2970.3,12.83398447]
[1768982613447,12.00119859,2970.9,2970.8,0.002]
[1768982613671,12.00119859,2970.9,2970.4,12.27698447]
[1768982613973,12.00119859,2971.1,2970.5,12.27898447]
[1768982614275,0.556,2971.0,2970.5,12.21820603]
[1768982616347,12.04854074,2971.2,2970.5,12.21820603]
[1768982616552,0.556,2971.1,2970.5,12.77320603]
[1768982617277,12.60454074,2971.1,2970.5,12.75636536]
[1768982618667,0.556,2971.1,2970.5,12.75636536]
[1768982619169,0.556,2971.1,2970.5,13.31136536]
[1768982619384,0.0018,2971.3,2970.5,14.7537019]
[1768982619588,0.5578,2971.3,2970.5,14.7537019]
[1768982620993,12.6311278,2971.3,2970.5,13.31136536]
[1768982621287,12.04854074,2971.2,2970.5,13.31136536]
[1768982621482,12.04854074,2971.0,2970.5,13.86636536]
[1768982621850,0.02478706,2970.9,2970.5,13.86636536]
[1768982622074,12.0733278,2970.9,2970.5,1.49487757]
[1768982622271,12.0733278,2970.9,2970.5,1.11208169]
[1768982622272,0.02478706,2970.8,2970.5,1.11208169]
[1768982622480,0.02478706,2970.8,2970.3,1.112]
[1768982622481,12.0733278,2970.8,2970.3,1.112]
[1768982622669,1.20733278,2970.7,2970.3,1.112]
[1768982622871,1.23211984,2970.7,2970.3,13.38898447]
[1768982623281,1.20733278,2970.7,2970.3,4.7e-07]
[1768982623493,1.23211984,2970.7,2970.3,4.7e-07]
[1768982623977,1.23211984,2970.7,2970.1,4.7e-07]
[1768982624179,1.20733278,2970.7,2970.3,0.555]
[1768982624586,13.25587352,2970.7,2970.3,0.555]
[1768982624897,13.25587352,2970.7,2970.3,0.24885994]
[1768982625053,12.04854074,2970.7,2970.1,12.27698494]
[1768982625783,12.04854074,2970.7,2970.5,0.002]
[1768982625984,12.04854074,2970.7,2970.2,12.39789862]
[1768982626193,12.04854074,2970.7,2970.3,0.002]
[1768982626364,12.04854074,2970.7,2970.2,0.95282762]
[1768982626569,12.04854074,2970.7,2970.2,0.555]
[1768982628191,12.04854074,2970.7,2970.2,0.58866776]
[1768982628383,12.04854074,2970.7,2970.2,12.88239873]
[1768982628699,12.04854074,2970.7,2970.2,14.19303089]
[1768982628871,12.04854074,2970.7,2970.2,14.74803089]
[1768982629299,12.08380794,2970.8,2970.2,14.74803089]
[1768982631776,12.08380794,2970.8,2970.2,15.30303089]
[1768982633411,0.001,2970.8,2970.2,15.30303089]
[1768982633607,0.001,2970.8,2970.4,12.29373097]
[1768982634090,0.001,2970.8,2970.4,12.84873097]
[1768982637016,0.001,2970.8,2970.4,13.40373097]
[1768982638124,0.001,2970.6,2970.4,13.40373097]
[1768982639390,0.001,2970.6,2970.4,13.95873097]
[1768982639594,0.001,2970.6,2970.4,15.30277399]
[1768982641101,0.001,2970.6,2970.4,3.00904302]
[1768982641307,0.001,2970.6,2970.4,13.95873097]
[1768982642230,0.001,2970.6,2970.4,14.51373097]
[1768982643517,12.63880794,2971.1,2970.5,12.29373097]
[1768982644088,12.08280794,2971.1,2970.5,12.29373097]
[1768982644690,12.08280794,2971.1,2970.5,14.30010407]
[1768982645020,12.08280794,2971.1,2970.5,2.0063731]
[1768982645691,12.08280794,2971.1,2970.5,1.56204556]
[1768982645895,12.08280794,2971.1,2970.5,1.43444098]
[1768982646089,12.08280794,2971.1,2970.5,1.1366905]
[1768982646305,12.08280794,2971.1,2970.5,1.11769984]
[1768982647226,12.08280794,2971.1,2970.5,1.67269984]
[1768982648832,12.08280794,2971.1,2970.5,0.555]
[1768982649132,12.08280794,2970.4,2970.2,1.665]
[1768982649332,12.08280794,2970.4,2970.2,1.45229404]
[1768982649536,12.08280794,2970.4,2970.2,1.62441172]
[1768982649732,12.08280794,2970.4,2970.2,1.28405937]
[1768982649928,12.08280794,2970.4,2970.2,1.07133309]
[1768982650238,12.08280794,2970.4,2970.2,0.51815881]
[1768982650434,12.08280794,2970.4,2970.2,0.17761913]
[1768982650634,12.08280794,2970.4,2970.2,0.0924709]
[1768982650934,12.08280794,2970.4,2970.1,4.7e-07]
[1768982652230,13.2929879,2970.4,2970.1,4.7e-07]
[1768982652638,13.8489879,2970.4,2969.9,0.002]
[1768982652932,12.08280794,2970.2,2969.8,0.557]
[1768982653180,12.08280794,2970.2,2969.8,0.12493189]
[1768982653316,12.08280794,2970.2,2969.5,13.96273097]
[1768982654449,12.08280794,2970.2,2969.6,13.95873097]
[1768982654760,12.08280794,2970.2,2969.7,12.29373097]
[1768982654955,0.0008,2970.3,2969.7,12.29373097]
[1768982655331,12.49264151,2970.3,2969.7,12.29373097]
[1768982656160,12.49264151,2970.3,2969.9,12.09794535]
[1768982656161,0.0008,2970.3,2969.9,12.09794535]
[1768982656450,0.0008,2970.3,2970.1,12.09794535]
[1768982657028,0.0008,2970.3,2970.1,12.65294535]
[1768982657423,0.0008,2970.3,2970.1,12.41287386]
[1768982657620,0.0008,2970.3,2970.1,12.31686036]
[1768982659747,0.0008,2970.3,2970.1,12.87186036]
[1768982662162,0.0008,2970.3,2970.1,13.42686036]
[1768982662455,0.0008,2970.3,2970.1,13.37885371]
[1768982662775,0.0008,2970.3,2970.1,1.665]
[1768982663070,0.0008,2970.3,2970.1,13.76294535]
[1768982664880,0.0008,2970.3,2970.1,14.31794535]
[1768982666177,12.49284151,2970.9,2970.2,12.09794535]
[1768982666403,12.49184151,2970.8,2970.2,12.09794535]
[1768982667251,12.49184151,2970.8,2970.2,12.65294535]
[1768982667981,12.49184151,2970.8,2970.2,0.555]
[1768982668276,12.49184151,2970.6,2970.2,0.555]
[1768982669249,12.49184151,2970.6,2970.2,12.65294535]
[1768982669582,12.49184151,2970.6,2970.2,0.555]
[1768982669781,12.49184151,2970.4,2970.2,1e-08]
[1768982670086,0.58078706,2970.5,2970.1,2.22]
[1768982670087,12.51662857,2970.3,2970.1,1.43531601]
[1768982670255,12.49184151,2970.3,2970.1,1.43531601]
[1768982670449,12.49184151,2970.3,2970.1,1e-08]
[1768982670651,12.49184151,2970.1,2969.6,2.22]
[1768982670886,12.49184151,2969.8,2969.2,13.20794535]
[1768982671976,12.49184151,2969.8,2969.2,12.65294535]
[1768982672182,12.49184151,2969.8,2969.4,0.555]
[1768982673482,12.49184151,2969.8,2969.6,0.002]
[1768982673682,12.49184151,2969.8,2969.4,0.555]
[1768982673986,12.49184151,2969.8,2969.4,0.557]
[1768982674662,13.79662566,2969.8,2969.2,0.107587]
[1768982674868,13.79662566,2969.8,2969.1,1.4988]
[1768982675190,12.49184151,2969.7,2969.1,1.4988]
[1768982675356,12.49184151,2969.7,2969.1,1.47970717]
[1768982675557,13.67971716,2969.7,2969.1,1.47970717]
[1768982675786,13.67971716,2969.7,2969.1,1.46061466]
[1768982676264,13.67971716,2969.7,2969.1,1.44152214]
[1768982677082,13.67971716,2969.7,2969.1,1.3567938]
[1768982677267,13.67971716,2969.7,2969.1,1.6667586]
[1768982677463,13.67971716,2969.7,2969.1,1.45521587]
[1768982677665,13.67971716,2969.7,2969.1,1.21716668]
[1768982677869,12.49184151,2969.3,2969.1,1.11134541]
[1768982678066,12.49184151,2969.3,2969.1,0.93349627]
[1768982678265,12.49184151,2969.3,2969.1,0.6423656]
[1768982678593,12.49184151,2969.3,2969.1,0.53647486]
[1768982678883,12.49184151,2969.3,2969.1,0.24520653]
[1768982679184,0.01909254,2969.1,2969.0,0.557]
[1768982679384,0.01909254,2969.1,2968.9,0.002]
[1768982679570,0.01909254,2969.1,2968.9,0.557]
[1768982681296,12.51093405,2969.1,2968.9,0.557]
[1768982681458,12.51093405,2969.1,2968.8,0.002]
[1768982681854,12.51093405,2969.1,2968.7,1.667]
[1768982682059,12.51093405,2969.1,2968.7,2.222]
[1768982683215,12.49184151,2969.2,2968.7,2.96132371]
[1768982683508,12.49264151,2969.4,2968.8,12.09794535]
[1768982683999,0.0008,2969.4,2968.8,12.09794535]
[1768982684397,0.0008,2969.4,2968.8,12.65294535]
[1768982684620,0.0008,2969.4,2969.0,12.09794535]
[1768982685684,0.0008,2969.4,2969.0,12.09994535]
[1768982686784,0.0008,2969.4,2969.0,12.65494535]
[1768982686980,12.54324828,2969.4,2969.0,12.65494535]
[1768982687184,12.54324828,2969.4,2969.0,0.557]
[1768982689133,0.0008,2969.4,2969.0,13.23398077]
[1768982689434,0.0008,2969.4,2969.0,13.78898077]
[1768982691667,0.0008,2969.4,2969.0,14.34398077]
[1768982692663,12.54324828,2969.4,2969.0,1.667]
[1768982692844,12.54324828,2969.4,2969.0,19.25206553]
[1768982693146,0.0008,2969.4,2969.0,21.23634033]
[1768982693563,0.0008,2969.4,2969.0,8.55935956]
[1768982693716,0.0008,2969.4,2969.1,12.67698077]
[1768982694070,0.0008,2969.7,2969.2,12.67698077]
[1768982695076,0.001,2970.1,2969.6,4.90808476]
[1768982695252,0.001,2970.1,2969.7,12.67698077]
[1768982695452,13.09844828,2970.8,2970.0,12.67698077]
[1768982696065,12.54244828,2970.8,2970.0,12.67698077]
[1768982696268,0.001,2970.9,2970.3,12.67698077]
[1768982696603,0.001,2970.9,2970.3,13.23398077]
[1768982699356,0.001,2970.9,2970.3,13.78898077]
[1768982699686,0.001,2970.9,2970.3,15.65868732]
[1768982700268,12.54344828,2970.9,2970.3,0.555]
[1768982700496,12.54244828,2970.7,2970.0,0.555]
[1768982700799,12.54244828,2970.5,2970.0,0.555]
[1768982700958,12.54244828,2970.4,2970.0,0.555]
[1768982701161,13.79669311,2970.3,2970.0,0.555]
[1768982701662,13.79669311,2970.3,2970.0,1.11]
[1768982703377,12.54244828,2970.5,2970.0,13.78698077]
[1768982703560,13.09844828,2970.7,2970.0,13.78698077]
[1768982704161,13.09844828,2970.7,2970.0,14.34198077]
[1768982704362,0.556,2970.7,2970.0,14.34198077]
[1768982704886,13.09844828,2970.7,2970.0,14.34198077]
[1768982705080,13.85229311,2970.6,2970.0,14.34198077]
[1768982705874,12.54244828,2970.4,2970.0,1.665]
[1768982706500,12.54244828,2970.4,2970.0,2.22]
[1768982706662,1.30984483,2970.6,2970.0,14.89698077]
[1768982706663,13.85229311,2970.6,2970.0,14.89698077]
[1768982706973,1.86584483,2970.6,2970.0,14.89698077]
[1768982707590,1.30984483,2970.6,2970.0,14.89698077]
[1768982709088,1.30984483,2970.6,2970.0,15.45198077]
[1768982709290,12.54244828,2970.7,2970.0,15.45198077]
[1768982709487,12.54244828,2970.7,2970.2,0.002]
[1768982710999,0.001,2970.9,2970.2,12.71264853]
[1768982711182,0.001,2970.9,2970.2,12.67898077]
[1768982711376,0.001,2970.9,2970.2,13.23398077]
[1768982711573,0.001,2970.9,2970.2,14.31496244]
[1768982712199,0.001,2970.9,2970.2,14.87196244]
[1768982712899,12.54344828,2970.9,2970.2,14.87196244]
[1768982713200,12.54344828,2970.9,2970.2,13.79098077]
[1768982713369,0.0018,2971.3,2970.4,12.67698077]
[1768982713573,0.0018,2971.3,2970.5,12.67698077]
[1768982714199,12.54424828,2971.3,2970.5,12.67698077]
[1768982716411,12.54424828,2971.3,2970.5,13.23198077]
[1768982716903,0.0018,2971.3,2970.7,12.1225088]
[1768982718998,0.0018,2971.3,2970.7,12.6775088]
[1768982719805,12.44222225,2971.3,2970.7,12.6775088]
[1768982720478,12.44222225,2971.3,2970.7,0.555]
[1768982720674,12.44042225,2971.1,2970.7,0.555]
[1768982721389,12.44142225,2971.1,2970.7,1.11]
[1768982723977,12.44142225,2971.1,2970.7,1.665]
[1768982725113,0.001,2971.1,2970.7,13.7875088]
[1768982725478,0.001,2971.1,2970.8,0.03366096]
[1768982725684,0.0018,2971.3,2970.9,12.1225088]
[1768982726602,0.0018,2971.3,2970.9,12.6775088]
[1768982726922,12.44122225,2971.6,2971.0,12.1225088]
[1768982729629,12.44122225,2971.6,2971.0,12.6775088]
[1768982731807,0.0008,2971.6,2971.0,12.6775088]
[1768982732009,0.0008,2971.6,2971.0,13.2325088]
[1768982732994,0.0008,2971.6,2971.2,12.1225088]
[1768982733402,0.001,2971.4,2971.2,12.1225088]
[1768982734692,0.001,2971.4,2971.2,12.6775088]
[1768982736523,0.0008,2971.6,2971.2,12.6775088]
[1768982736690,12.44122225,2971.6,2971.2,0.555]
[1768982737093,12.44122225,2971.6,2971.2,1.11]
[1768982738626,12.44042225,2971.4,2971.2,1e-08]
[1768982738999,1.30052223,2971.6,2971.2,1e-08]
[1768982739000,1.30052223,2971.6,2971.2,12.12250881]
[1768982739325,0.0008,2971.6,2971.2,12.12250881]
[1768982739523,0.0008,2971.6,2971.2,12.67750881]
[1768982739830,12.99722225,2971.9,2971.3,12.1225088]
[1768982742123,12.99722225,2971.9,2971.3,12.6775088]
[1768982743234,12.44122225,2972.2,2971.6,12.1225088]
[1768982743392,13.33375476,2972.2,2971.6,12.1225088]
[1768982744609,13.33375476,2972.2,2971.6,12.6775088]
[1768982745229,12.77775476,2972.2,2971.6,12.6775088]
[1768982746427,0.001,2972.0,2971.6,12.6775088]
[1768982747692,0.001,2972.0,2971.6,13.2325088]
[1768982749428,12.6604126,2972.0,2971.6,1.11]
[1768982750298,12.6604126,2972.0,2971.6,1.665]
[1768982752550,12.6594126,2971.8,2971.6,1.665]
[1768982752847,12.6594126,2971.8,2971.6,2.22]
[1768982753045,13.92545386,2971.8,2971.4,0.002]
[1768982753345,14.48145386,2971.8,2971.0,0.00400001]
[1768982754750,14.48145386,2971.8,2971.0,12.49857921]
[1768982755333,0.556,2971.7,2971.0,13.05357921]
[1768982755722,0.556,2971.7,2971.2,12.4945792]
[1768982755923,13.2154126,2971.7,2971.2,12.4945792]
[1768982756150,13.2154126,2971.7,2971.0,0.55900001]
[1768982756519,13.2154126,2971.7,2971.0,13.05357921]
[1768982756820,14.8734474,2971.7,2971.0,13.05357921]
[1768982757851,14.8734474,2971.7,2971.0,13.60857921]
[1768982758751,14.8734474,2971.7,2971.2,0.002]
[1768982759548,0.557,2972.0,2971.2,12.4965792]
[1768982759851,13.2164126,2972.0,2971.4,12.4945792]
[1768982760352,13.2164126,2972.0,2971.4,13.0495792]
[1768982762952,0.557,2972.0,2971.4,13.0495792]
[1768982763162,0.557,2972.0,2971.4,13.6045792]
[1768982763850,0.557,2972.0,2971.4,14.03727984]
[1768982764017,0.001,2972.0,2971.4,14.03727984]
[1768982764221,0.001,2972.0,2971.5,12.4945792]
[1768982764749,0.0008,2972.2,2971.6,12.4945792]
[1768982764949,12.6604126,2972.6,2971.8,12.4945792]
[1768982765153,12.68419966,2972.5,2971.7,1.30515792]
[1768982765355,12.6594126,2972.3,2971.4,1.11]
[1768982765527,12.6594126,2972.1,2971.7,0.555]
[1768982766065,12.6594126,2971.9,2971.7,1e-08]
[1768982768146,12.6594126,2971.9,2971.7,0.55500001]
[1768982768337,12.6594126,2971.9,2971.7,0.45493603]
[1768982768535,12.6594126,2971.9,2971.7,0.25935678]
[1768982768849,1.32154126,2971.8,2971.4,13.6045792]
[1768982769246,13.98095386,2971.8,2971.4,1.11]
[1768982769449,12.6594126,2971.6,2971.2,0.002]
[1768982770656,13.2154126,2971.6,2971.2,0.002]
[1768982770865,13.2154126,2971.6,2971.2,0.557]
[1768982771371,13.2154126,2971.6,2971.4,0.002]
[1768982771549,14.53695386,2971.6,2971.4,0.002]
[1768982773062,0.001,2971.9,2971.4,12.4965792]
[1768982773242,0.001,2971.9,2971.5,12.4945792]
[1768982774871,12.6594126,2972.5,2971.5,12.4945792]
[1768982775039,0.556,2972.4,2971.5,12.4945792]
[1768982775242,12.8805201,2972.2,2971.4,0.557]
[1768982775540,12.8805201,2972.2,2971.4,14.43529953]
[1768982776781,12.8805201,2972.2,2971.4,13.87829953]
[1768982776948,12.8805201,2972.2,2971.4,14.43529953]
[1768982778174,12.8805201,2972.2,2971.4,14.99029953]
[1768982778873,12.8805201,2972.0,2971.4,14.43329953]
[1768982779044,12.8805201,2971.8,2971.4,1.667]
[1768982779244,12.8805201,2971.8,2971.4,1.617]
[1768982779445,12.8805201,2971.8,2971.2,0.557]
[1768982779687,12.8805201,2971.6,2971.2,0.557]
[1768982780571,12.8805201,2971.6,2971.2,1.112]
[1768982781576,12.8789201,2971.6,2971.2,1.112]
[1768982782079,12.8789201,2971.6,2971.2,1e-08]
[1768982782379,12.8805201,2971.2,2970.9,1e-08]
[1768982782577,12.8805201,2971.0,2970.9,1e-08]
[1768982783074,12.8805201,2971.0,2970.7,1.665]
[1768982783379,12.8805201,2970.8,2970.3,0.555]
[1768982783895,12.8805201,2970.5,2970.3,0.555]
[1768982784762,0.07074904,2970.6,2970.3,0.555]
[1768982785271,0.07074904,2970.6,2970.3,1.11]
[1768982786074,12.8805201,2971.1,2970.4,12.76629953]
[1768982786255,13.4365201,2971.2,2970.4,12.76629953]
[1768982787385,12.8805201,2971.0,2970.3,1.11]
[1768982787686,12.8805201,2970.6,2970.3,1e-08]
[1768982787883,12.8805201,2970.6,2970.0,2.72860001]
[1768982788192,12.8805201,2970.6,2970.0,15.49489954]
[1768982788488,12.8805201,2970.6,2970.1,12.76629953]
[1768982788954,12.8805201,2970.6,2970.0,2.72860001]
[1768982789459,14.04626003,2970.6,2970.0,1e-08]
[1768982789654,12.8805201,2970.5,2970.0,1e-08]
[1768982790254,0.0008,2970.3,2970.0,1e-08]
[1768982790451,12.8805201,2970.2,2970.0,1e-08]
[1768982792678,12.8805201,2970.2,2970.0,0.55500001]
[1768982794204,0.0008,2970.3,2970.0,0.55500001]
[1768982794705,0.0008,2970.6,2970.1,12.76629953]
[1768982794868,0.0008,2970.6,2970.1,14.09842948]
[1768982795075,0.0008,2970.6,2970.1,14.65342948]
[1768982796297,0.0008,2970.6,2970.1,13.32129953]
[1768982796491,0.0008,2970.6,2970.2,0.002]
[1768982796699,0.0008,2970.6,2970.2,12.76829953]
[1768982797592,0.0008,2970.6,2970.2,13.32329953]
[1768982799991,0.0008,2970.6,2970.2,13.87829953]
[1768982802681,0.0008,2970.6,2970.2,14.43329953]
[1768982805301,0.0008,2970.6,2970.2,14.98829953]
[1768982806600,12.73555538,2970.6,2970.2,14.98829953]
[1768982807979,12.73555538,2970.6,2970.2,15.54329953]
[1768982809305,12.73555538,2970.6,2970.3,0.002]
[1768982809678,0.001,2970.4,2970.3,0.002]
[1768982810909,0.001,2970.4,2970.3,0.557]
[1768982812882,12.73575538,2970.4,2970.3,0.557]
[1768982813216,12.73575538,2970.4,2970.3,0.22077143]
[1768982813415,12.73575538,2970.4,2970.2,2.777]
[1768982815520,14.00941092,2970.4,2970.1,0.46250616]
[1768982815814,12.75954244,2970.3,2969.3,12.91499498]
[1768982816030,12.73475538,2970.3,2969.4,12.91499498]
[1768982816200,12.73475538,2970.3,2969.2,0.557]
[1768982816519,12.73475538,2970.3,2969.5,12.91699498]
[1768982816711,12.73475538,2970.1,2969.5,12.91699498]
[1768982816907,12.73475538,2970.1,2969.5,0.002]
[1768982818206,1.79319769,2970.2,2969.5,0.557]
[1768982818207,12.73475538,2969.9,2969.5,0.557]
[1768982819013,12.73475538,2969.9,2969.1,0.5566]
[1768982819014,12.73475538,2969.7,2969.1,0.5566]
[1768982819213,12.73475538,2969.3,2968.8,0.557]